[Event "Titled Tuesday Blitz July 18 Early 2023"]
[White "He, Anthony"]
[Black "NicolaiMaxime"]
[WhiteFideId "2088215"]
[WhiteElo "2945"]
[BlackElo "2602"]
[Result "1-0"]
[Round "2"]
[TimeControl "180+2"]
[Date "2023.07.18"]
[WhiteClock "0:01:32"]
[BlackClock "0:01:25"]
[Board "22"]

1. d4 {[%clk 0:03:00]}  Nf6 {[%clk 0:02:59]} 2. Nc3 {[%clk 0:03:01]}  d5 {[%clk 0:02:58]} 3. Bf4 {[%clk 0:03:01]}  Bf5 {[%clk 0:02:57]} 4. e3 {[%clk 0:03:01]}  c6 {[%clk 0:02:56]} 5. Nf3 {[%clk 0:03:01]}  Nbd7 {[%clk 0:02:56]} 6. Be2 {[%clk 0:02:53]}  h6 {[%clk 0:02:54]} 7. O-O {[%clk 0:02:52]}  Nh5 {[%clk 0:02:54]} 8. Be5 {[%clk 0:02:48]}  Nxe5 {[%clk 0:02:54]} 9. dxe5 {[%clk 0:02:48]}  Nf6 {[%clk 0:02:54]} 10. exf6 {[%clk 0:02:48]}  exf6 {[%clk 0:02:53]} 11. Bd3 {[%clk 0:02:47]}  Bd7 {[%clk 0:02:52]} 12. e4 {[%clk 0:02:43]}  dxe4 {[%clk 0:02:40]} 13. Nxe4 {[%clk 0:02:39]}  Be7 {[%clk 0:02:37]} 14. Re1 {[%clk 0:02:39]}  O-O {[%clk 0:02:37]} 15. Ng3 {[%clk 0:02:40]}  g6 {[%clk 0:02:35]} 16. Qd2 {[%clk 0:02:28]}  Kg7 {[%clk 0:02:32]} 17. Re2 {[%clk 0:02:26]}  Bc5 {[%clk 0:02:29]} 18. Rae1 {[%clk 0:02:26]}  Bg4 {[%clk 0:02:27]} 19. Qf4 {[%clk 0:02:22]}  h5 {[%clk 0:02:25]} 20. h3 {[%clk 0:02:15]}  Bd7 {[%clk 0:02:20]} 21. Ne4 {[%clk 0:02:10]}  Bb6 {[%clk 0:02:15]} 22. Qd6 {[%clk 0:02:02]}  Bc7 {[%clk 0:02:11]} 23. Qd4 {[%clk 0:01:58]}  Bb6 {[%clk 0:02:10]} 24. Qc3 {[%clk 0:01:57]}  Ba5 {[%clk 0:02:05]} 25. b4 {[%clk 0:01:56]}  Bb6 {[%clk 0:02:05]} 26. a3 {[%clk 0:01:54]}  a5 {[%clk 0:02:05]} 27. Nc5 {[%clk 0:01:50]}  Bc8 {[%clk 0:02:01]} 28. Re7 {[%clk 0:01:48]}  axb4 {[%clk 0:02:00]} 29. axb4 {[%clk 0:01:47]}  Qd5 {[%clk 0:01:50]} 30. Bc4 {[%clk 0:01:44]}  Qd6 {[%clk 0:01:50]} 31. Ne6+ {[%clk 0:01:33]}  Bxe6 {[%clk 0:01:39]} 32. R1xe6 {[%clk 0:01:34]}  Qd1+ {[%clk 0:01:36]} 33. Kh2 {[%clk 0:01:32]}  Bxf2 {[%clk 0:01:27]} 34. Qxf6+ {[%clk 0:01:32]}  Kg8 {[%clk 0:01:27]} 35. Qxg6+ {[%clk 0:01:31]}  fxg6 {[%clk 0:01:24]} 36. Rxg6+ {[%clk 0:01:32]}  Kh8 {[%clk 0:01:25]} 37. Rh6# {[%clk 0:01:32]} 1-0


[Site "https://www.chess.com"]

[Event "Titled Tuesday Blitz July 18 Early 2023"]
[White "Karttunen, Mika"]
[Black "Ibarra Jerez, Jose Carlos"]
[WhiteFideId "502081"]
[BlackFideId "2226332"]
[WhiteElo "2598"]
[BlackElo "2943"]
[Result "0-1"]
[Round "2"]
[TimeControl "180+2"]
[Date "2023.07.18"]
[WhiteClock "0:00:06"]
[BlackClock "0:00:07"]
[Board "23"]

1. e4 {[%clk 0:03:00]}  c5 {[%clk 0:02:58]} 2. Nf3 {[%clk 0:03:00]}  e6 {[%clk 0:02:58]} 3. d4 {[%clk 0:03:00]}  cxd4 {[%clk 0:02:58]} 4. Nxd4 {[%clk 0:03:01]}  Bc5 {[%clk 0:02:58]} 5. Nb3 {[%clk 0:03:00]}  Bb6 {[%clk 0:02:58]} 6. Nc3 {[%clk 0:02:55]}  Ne7 {[%clk 0:02:59]} 7. Qg4 {[%clk 0:02:48]}  O-O {[%clk 0:02:59]} 8. Bd3 {[%clk 0:02:27]}  f5 {[%clk 0:02:57]} 9. exf5 {[%clk 0:02:23]}  Nxf5 {[%clk 0:02:58]} 10. O-O {[%clk 0:02:21]}  d5 {[%clk 0:02:57]} 11. Bg5 {[%clk 0:02:18]}  Qe8 {[%clk 0:02:57]} 12. Rae1 {[%clk 0:02:14]}  Qg6 {[%clk 0:02:56]} 13. h3 {[%clk 0:02:07]}  h6 {[%clk 0:02:35]} 14. Bf4 {[%clk 0:02:03]}  Qf7 {[%clk 0:02:17]} 15. Nb5 {[%clk 0:01:14]}  Nc6 {[%clk 0:02:05]} 16. Nd6 {[%clk 0:00:57]}  Nxd6 {[%clk 0:02:04]} 17. Bxd6 {[%clk 0:00:58]}  Rd8 {[%clk 0:01:56]} 18. Bg6 {[%clk 0:00:34]}  Qf6 {[%clk 0:01:44]} 19. Bg3 {[%clk 0:00:34]}  e5 {[%clk 0:01:39]} 20. Qh5 {[%clk 0:00:33]}  Rf8 {[%clk 0:01:25]} 21. Bxe5 {[%clk 0:00:26]}  Nxe5 {[%clk 0:01:19]} 22. Rxe5 {[%clk 0:00:26]}  Bxf2+ {[%clk 0:01:20]} 23. Kh1 {[%clk 0:00:26]}  Qb6 {[%clk 0:00:45]} 24. Re2 {[%clk 0:00:25]}  Be6 {[%clk 0:00:33]} 25. c3 {[%clk 0:00:17]}  Rf6 {[%clk 0:00:33]} 26. Nd2 {[%clk 0:00:13]}  Raf8 {[%clk 0:00:32]} 27. Nf3 {[%clk 0:00:13]}  Bg3 {[%clk 0:00:32]} 28. Rd1 {[%clk 0:00:07]}  Bxh3 {[%clk 0:00:23]} 29. Bh7+ {[%clk 0:00:06]}  Kxh7 {[%clk 0:00:21]} 30. Qxh3 {[%clk 0:00:07]}  Rg6 {[%clk 0:00:19]} 31. Rxd5 {[%clk 0:00:06]}  Qa6 {[%clk 0:00:13]} 32. Ng5+ {[%clk 0:00:06]}  Rxg5 {[%clk 0:00:12]} 33. Rxg5 {[%clk 0:00:06]}  Rf1# {[%clk 0:00:07]} 0-1


[Site "https://www.chess.com"]

[Event "Titled Tuesday Blitz July 18 Early 2023"]
[White "Ambartsumova, Karina"]
[Black "Anton Guijarro, David"]
[WhiteFideId "4166299"]
[BlackFideId "2285525"]
[WhiteElo "2595"]
[BlackElo "2934"]
[Result "1/2-1/2"]
[Round "2"]
[TimeControl "180+2"]
[Date "2023.07.18"]
[WhiteClock "0:00:15"]
[BlackClock "0:00:27"]
[Board "25"]

1. d4 {[%clk 0:03:00]}  d5 {[%clk 0:02:58]} 2. Nf3 {[%clk 0:02:59]}  e6 {[%clk 0:02:58]} 3. c4 {[%clk 0:02:58]}  c6 {[%clk 0:02:56]} 4. e3 {[%clk 0:02:55]}  Bd6 {[%clk 0:02:55]} 5. Nbd2 {[%clk 0:02:50]}  f5 {[%clk 0:02:54]} 6. b3 {[%clk 0:02:49]}  Nf6 {[%clk 0:02:50]} 7. Bb2 {[%clk 0:02:49]}  O-O {[%clk 0:02:50]} 8. Bd3 {[%clk 0:02:47]}  Ne4 {[%clk 0:02:49]} 9. O-O {[%clk 0:02:47]}  Nd7 {[%clk 0:02:49]} 10. Ne5 {[%clk 0:02:37]}  a5 {[%clk 0:02:49]} 11. f3 {[%clk 0:02:28]}  Nec5 {[%clk 0:02:41]} 12. Bc2 {[%clk 0:02:17]}  Nxe5 {[%clk 0:02:38]} 13. dxe5 {[%clk 0:02:07]}  Be7 {[%clk 0:02:39]} 14. Qe2 {[%clk 0:01:58]}  b5 {[%clk 0:02:30]} 15. Rfd1 {[%clk 0:01:44]}  Ba6 {[%clk 0:02:10]} 16. e4 {[%clk 0:01:02]}  bxc4 {[%clk 0:01:50]} 17. bxc4 {[%clk 0:01:01]}  Rb8 {[%clk 0:01:23]} 18. Rab1 {[%clk 0:00:42]}  fxe4 {[%clk 0:01:00]} 19. fxe4 {[%clk 0:00:42]}  a4 {[%clk 0:00:51]} 20. exd5 {[%clk 0:00:26]}  cxd5 {[%clk 0:00:41]} 21. Qh5 {[%clk 0:00:26]}  g6 {[%clk 0:00:24]} 22. Bxg6 {[%clk 0:00:26]}  hxg6 {[%clk 0:00:25]} 23. Qxg6+ {[%clk 0:00:26]}  Kh8 {[%clk 0:00:26]} 24. Qh6+ {[%clk 0:00:15]}  Kg8 {[%clk 0:00:26]} 25. Qg6+ {[%clk 0:00:16]}  Kh8 {[%clk 0:00:27]} 26. Qh6+ {[%clk 0:00:15]}  Kg8 {[%clk 0:00:27]} 27. Qg6+ {[%clk 0:00:15]} 1/2-1/2


[Site "https://www.chess.com"]

[Event "Titled Tuesday Blitz July 18 Early 2023"]
[White "Skliarov, Viktor"]
[Black "Durarbayli, Vasif"]
[WhiteFideId "14106736"]
[BlackFideId "13402935"]
[WhiteElo "2593"]
[BlackElo "2927"]
[Result "0-1"]
[Round "2"]
[TimeControl "180+2"]
[Date "2023.07.18"]
[WhiteClock "0:00:56"]
[BlackClock "0:01:14"]
[Board "27"]

1. e4 {[%clk 0:03:00]}  c5 {[%clk 0:02:59]} 2. Nf3 {[%clk 0:03:01]}  d6 {[%clk 0:03:00]} 3. d4 {[%clk 0:03:01]}  cxd4 {[%clk 0:03:01]} 4. Qxd4 {[%clk 0:03:01]}  a6 {[%clk 0:02:59]} 5. Be3 {[%clk 0:03:01]}  Nc6 {[%clk 0:02:59]} 6. Qd2 {[%clk 0:03:01]}  Bg4 {[%clk 0:02:59]} 7. Nc3 {[%clk 0:02:59]}  Bxf3 {[%clk 0:02:56]} 8. gxf3 {[%clk 0:02:59]}  g6 {[%clk 0:02:56]} 9. h4 {[%clk 0:02:39]}  Nf6 {[%clk 0:02:44]} 10. O-O-O {[%clk 0:02:36]}  Rc8 {[%clk 0:02:35]} 11. Bh3 {[%clk 0:02:31]}  e6 {[%clk 0:02:30]} 12. f4 {[%clk 0:02:21]}  b5 {[%clk 0:01:59]} 13. f3 {[%clk 0:02:21]}  Na5 {[%clk 0:01:48]} 14. e5 {[%clk 0:02:09]}  Nc4 {[%clk 0:01:45]} 15. Qe2 {[%clk 0:01:51]}  Nh5 {[%clk 0:01:41]} 16. Bg4 {[%clk 0:01:38]}  Ng3 {[%clk 0:01:38]} 17. Qf2 {[%clk 0:01:23]}  Nxh1 {[%clk 0:01:36]} 18. Rxh1 {[%clk 0:01:24]}  d5 {[%clk 0:01:22]} 19. h5 {[%clk 0:01:22]}  Nxe3 {[%clk 0:01:22]} 20. Qxe3 {[%clk 0:01:17]}  d4 {[%clk 0:01:23]} 21. Qe4 {[%clk 0:01:13]}  dxc3 {[%clk 0:01:20]} 22. hxg6 {[%clk 0:00:56]}  hxg6 {[%clk 0:01:14]} 0-1


[Site "https://www.chess.com"]

[Event "Titled Tuesday Blitz July 18 Early 2023"]
[White "Ahmad, Khagan"]
[Black "Jones, Gawain C B"]
[WhiteFideId "13431552"]
[BlackFideId "409561"]
[WhiteElo "2591"]
[BlackElo "2920"]
[Result "0-1"]
[Round "2"]
[TimeControl "180+2"]
[Date "2023.07.18"]
[WhiteClock "0:00:06"]
[BlackClock "0:00:15"]
[Board "29"]

1. Nf3 {[%clk 0:03:00]}  g6 {[%clk 0:02:58]} 2. d4 {[%clk 0:02:37]}  Nf6 {[%clk 0:02:58]} 3. c4 {[%clk 0:02:37]}  Bg7 {[%clk 0:02:58]} 4. Nc3 {[%clk 0:02:36]}  O-O {[%clk 0:02:59]} 5. Bg5 {[%clk 0:02:29]}  c5 {[%clk 0:02:59]} 6. d5 {[%clk 0:02:29]}  h6 {[%clk 0:02:56]} 7. Bxf6 {[%clk 0:02:26]}  Bxf6 {[%clk 0:02:56]} 8. e3 {[%clk 0:02:26]}  e6 {[%clk 0:02:51]} 9. Qd2 {[%clk 0:02:24]}  d6 {[%clk 0:02:48]} 10. Bd3 {[%clk 0:02:05]}  Na6 {[%clk 0:02:38]} 11. O-O {[%clk 0:02:03]}  Bxc3 {[%clk 0:02:35]} 12. Qxc3 {[%clk 0:01:54]}  e5 {[%clk 0:02:36]} 13. e4 {[%clk 0:01:51]}  f5 {[%clk 0:02:32]} 14. a3 {[%clk 0:01:49]}  f4 {[%clk 0:02:20]} 15. Be2 {[%clk 0:01:36]}  g5 {[%clk 0:02:20]} 16. h3 {[%clk 0:01:35]}  h5 {[%clk 0:02:17]} 17. Nh2 {[%clk 0:01:34]}  Qe8 {[%clk 0:02:16]} 18. Qf3 {[%clk 0:01:29]}  g4 {[%clk 0:02:06]} 19. hxg4 {[%clk 0:01:28]}  hxg4 {[%clk 0:02:05]} 20. Nxg4 {[%clk 0:01:29]}  Qg6 {[%clk 0:02:04]} 21. Nh2 {[%clk 0:01:22]}  Rf7 {[%clk 0:01:52]} 22. Qh5 {[%clk 0:00:59]}  Qxe4 {[%clk 0:01:36]} 23. Bg4 {[%clk 0:00:50]}  Qh7 {[%clk 0:01:22]} 24. Qg5+ {[%clk 0:00:38]}  Qg7 {[%clk 0:01:22]} 25. Qxg7+ {[%clk 0:00:32]}  Rxg7 {[%clk 0:01:20]} 26. Bxc8 {[%clk 0:00:31]}  Rxc8 {[%clk 0:01:21]} 27. f3 {[%clk 0:00:32]}  Nc7 {[%clk 0:01:10]} 28. a4 {[%clk 0:00:27]}  Kf7 {[%clk 0:01:05]} 29. Rae1 {[%clk 0:00:26]}  Ne8 {[%clk 0:00:50]} 30. Ng4 {[%clk 0:00:25]}  Nf6 {[%clk 0:00:51]} 31. Nxf6 {[%clk 0:00:18]}  Kxf6 {[%clk 0:00:52]} 32. Rf2 {[%clk 0:00:16]}  a6 {[%clk 0:00:46]} 33. a5 {[%clk 0:00:16]}  b6 {[%clk 0:00:47]} 34. axb6 {[%clk 0:00:16]}  Rb8 {[%clk 0:00:47]} 35. Ra1 {[%clk 0:00:15]}  Rxb6 {[%clk 0:00:47]} 36. Ra2 {[%clk 0:00:15]}  Ra7 {[%clk 0:00:41]} 37. Kf1 {[%clk 0:00:14]}  Rb4 {[%clk 0:00:36]} 38. Rc2 {[%clk 0:00:13]}  a5 {[%clk 0:00:37]} 39. Ke2 {[%clk 0:00:14]}  Rb3 {[%clk 0:00:30]} 40. Ra3 {[%clk 0:00:13]}  Rxa3 {[%clk 0:00:29]} 41. bxa3 {[%clk 0:00:14]}  Rb7 {[%clk 0:00:30]} 42. Kf2 {[%clk 0:00:09]}  Rb3 {[%clk 0:00:27]} 43. a4 {[%clk 0:00:09]}  Rb4 {[%clk 0:00:25]} 44. g3 {[%clk 0:00:09]}  fxg3+ {[%clk 0:00:25]} 45. Kxg3 {[%clk 0:00:09]}  Rxa4 {[%clk 0:00:21]} 46. f4 {[%clk 0:00:10]}  Rb4 {[%clk 0:00:19]} 47. Kg4 {[%clk 0:00:09]}  a4 {[%clk 0:00:15]} 48. fxe5+ {[%clk 0:00:09]}  Kxe5 {[%clk 0:00:15]} 49. Re2+ {[%clk 0:00:09]}  Kd4 {[%clk 0:00:16]} 50. Re6 {[%clk 0:00:08]}  a3 {[%clk 0:00:16]} 51. Rxd6 {[%clk 0:00:06]}  Ra4 {[%clk 0:00:15]} 0-1


[Site "https://www.chess.com"]

[Event "Titled Tuesday Blitz July 18 Early 2023"]
[White "Antipov, Mikhail Al."]
[Black "The_Sherman_Variation"]
[WhiteFideId "4107012"]
[WhiteElo "2904"]
[BlackElo "2587"]
[Result "1-0"]
[Round "2"]
[TimeControl "180+2"]
[Date "2023.07.18"]
[WhiteClock "0:02:00"]
[BlackClock "0:01:01"]
[Board "32"]

1. e4 {[%clk 0:03:00]}  c6 {[%clk 0:02:58]} 2. d4 {[%clk 0:03:00]}  g6 {[%clk 0:02:58]} 3. Nf3 {[%clk 0:02:59]}  d5 {[%clk 0:02:58]} 4. exd5 {[%clk 0:03:00]}  cxd5 {[%clk 0:02:58]} 5. h3 {[%clk 0:03:01]}  Bg7 {[%clk 0:02:58]} 6. Be2 {[%clk 0:03:00]}  Nc6 {[%clk 0:02:59]} 7. O-O {[%clk 0:03:00]}  Nf6 {[%clk 0:02:59]} 8. Re1 {[%clk 0:03:00]}  O-O {[%clk 0:03:00]} 9. c3 {[%clk 0:03:00]}  a6 {[%clk 0:02:58]} 10. Be3 {[%clk 0:03:00]}  b5 {[%clk 0:02:52]} 11. Nbd2 {[%clk 0:03:01]}  Rb8 {[%clk 0:02:51]} 12. Nb3 {[%clk 0:02:55]}  Ne4 {[%clk 0:02:48]} 13. Nfd2 {[%clk 0:02:52]}  f5 {[%clk 0:02:47]} 14. Bf4 {[%clk 0:02:53]}  Rb6 {[%clk 0:02:42]} 15. f3 {[%clk 0:02:50]}  Nd6 {[%clk 0:02:41]} 16. Nc5 {[%clk 0:02:38]}  Nc4 {[%clk 0:02:32]} 17. Nxc4 {[%clk 0:02:22]}  bxc4 {[%clk 0:02:33]} 18. b3 {[%clk 0:02:19]}  e5 {[%clk 0:02:19]} 19. dxe5 {[%clk 0:02:18]}  Nxe5 {[%clk 0:02:20]} 20. Bf1 {[%clk 0:02:13]}  Rc6 {[%clk 0:02:07]} 21. Bxe5 {[%clk 0:02:10]}  Bxe5 {[%clk 0:02:02]} 22. Rxe5 {[%clk 0:02:11]}  Rxc5 {[%clk 0:02:02]} 23. Bxc4 {[%clk 0:02:10]}  Bb7 {[%clk 0:01:56]} 24. Qd4 {[%clk 0:02:08]}  Qd6 {[%clk 0:01:34]} 25. Rae1 {[%clk 0:02:01]}  Rc7 {[%clk 0:01:16]} 26. Rxd5 {[%clk 0:02:00]}  Rxc4 {[%clk 0:01:01]} 27. Rxd6 {[%clk 0:02:00]} 1-0


[Site "https://www.chess.com"]

[Event "Titled Tuesday Blitz July 18 Early 2023"]
[White "Arat, Ufuk Sezen"]
[Black "Rasulov, Vugar"]
[WhiteFideId "6309089"]
[BlackFideId "13402390"]
[WhiteElo "2584"]
[BlackElo "2895"]
[Result "1-0"]
[Round "2"]
[TimeControl "180+2"]
[Date "2023.07.18"]
[WhiteClock "0:00:16"]
[BlackClock "0:00:00"]
[Board "33"]

1. e4 {[%clk 0:03:00]}  c5 {[%clk 0:02:59]} 2. Nf3 {[%clk 0:03:00]}  e6 {[%clk 0:02:59]} 3. d4 {[%clk 0:02:58]}  cxd4 {[%clk 0:03:00]} 4. Nxd4 {[%clk 0:02:58]}  Nc6 {[%clk 0:03:00]} 5. Nc3 {[%clk 0:02:58]}  Qc7 {[%clk 0:02:47]} 6. g3 {[%clk 0:02:58]}  a6 {[%clk 0:02:47]} 7. Bg2 {[%clk 0:02:58]}  Nf6 {[%clk 0:02:47]} 8. O-O {[%clk 0:02:57]}  Bc5 {[%clk 0:02:47]} 9. Bf4 {[%clk 0:02:51]}  e5 {[%clk 0:02:34]} 10. Nb3 {[%clk 0:02:51]}  exf4 {[%clk 0:02:18]} 11. Nxc5 {[%clk 0:02:51]}  O-O {[%clk 0:02:17]} 12. Nd3 {[%clk 0:02:47]}  fxg3 {[%clk 0:02:17]} 13. hxg3 {[%clk 0:02:46]}  d6 {[%clk 0:02:16]} 14. Nf4 {[%clk 0:02:42]}  Be6 {[%clk 0:02:14]} 15. Ncd5 {[%clk 0:02:28]}  Bxd5 {[%clk 0:02:13]} 16. Nxd5 {[%clk 0:02:26]}  Nxd5 {[%clk 0:02:13]} 17. Qxd5 {[%clk 0:02:26]}  Ne5 {[%clk 0:02:06]} 18. c3 {[%clk 0:02:23]}  Rfd8 {[%clk 0:02:05]} 19. Rad1 {[%clk 0:02:15]}  Rac8 {[%clk 0:02:05]} 20. Bh3 {[%clk 0:02:04]}  Rb8 {[%clk 0:02:04]} 21. Bg2 {[%clk 0:01:57]}  b5 {[%clk 0:02:04]} 22. Rfe1 {[%clk 0:01:50]}  h6 {[%clk 0:02:01]} 23. Qd4 {[%clk 0:01:46]}  a5 {[%clk 0:02:00]} 24. f4 {[%clk 0:01:44]}  Nc4 {[%clk 0:01:49]} 25. b3 {[%clk 0:01:42]}  Na3 {[%clk 0:01:49]} 26. Rc1 {[%clk 0:01:34]}  Rbc8 {[%clk 0:01:40]} 27. Qf2 {[%clk 0:01:30]}  Qc5 {[%clk 0:01:27]} 28. Red1 {[%clk 0:01:25]}  Kf8 {[%clk 0:01:25]} 29. Rd5 {[%clk 0:01:14]}  Qxf2+ {[%clk 0:01:24]} 30. Kxf2 {[%clk 0:01:13]}  Rc5 {[%clk 0:01:17]} 31. Ke3 {[%clk 0:00:59]}  Ke7 {[%clk 0:01:13]} 32. Kd3 {[%clk 0:00:56]}  Rdc8 {[%clk 0:01:08]} 33. Rxc5 {[%clk 0:00:56]}  dxc5 {[%clk 0:01:03]} 34. e5 {[%clk 0:00:56]}  c4+ {[%clk 0:01:04]} 35. Ke3 {[%clk 0:00:52]}  b4 {[%clk 0:00:46]} 36. bxc4 {[%clk 0:00:41]}  Nxc4+ {[%clk 0:00:44]} 37. Kd3 {[%clk 0:00:33]}  Na3 {[%clk 0:00:31]} 38. c4 {[%clk 0:00:28]}  Nb5 {[%clk 0:00:30]} 39. Bd5 {[%clk 0:00:24]}  Nc3 {[%clk 0:00:30]} 40. Rc2 {[%clk 0:00:22]}  f6 {[%clk 0:00:24]} 41. e6 {[%clk 0:00:20]}  Kd6 {[%clk 0:00:20]} 42. f5 {[%clk 0:00:19]}  g6 {[%clk 0:00:17]} 43. g4 {[%clk 0:00:18]}  h5 {[%clk 0:00:16]} 44. fxg6 {[%clk 0:00:16]}  hxg4 {[%clk 0:00:00]} 45. e7 {[%clk 0:00:16]} 1-0


[Site "https://www.chess.com"]

[Event "Titled Tuesday Blitz July 18 Early 2023"]
[White "Baskakov, Egor"]
[Black "Leon Oquendo, Jorge"]
[WhiteFideId "24197866"]
[BlackFideId "3514803"]
[WhiteElo "2887"]
[BlackElo "2584"]
[Result "0-1"]
[Round "2"]
[TimeControl "180+2"]
[Date "2023.07.18"]
[WhiteClock "0:00:20"]
[BlackClock "0:00:45"]
[Board "34"]

1. e4 {[%clk 0:02:55]}  c5 {[%clk 0:02:59]} 2. Nf3 {[%clk 0:02:55]}  d6 {[%clk 0:02:58]} 3. d4 {[%clk 0:02:55]}  cxd4 {[%clk 0:02:59]} 4. Nxd4 {[%clk 0:02:56]}  Nf6 {[%clk 0:02:59]} 5. Nc3 {[%clk 0:02:56]}  Nc6 {[%clk 0:02:57]} 6. g3 {[%clk 0:02:54]}  e5 {[%clk 0:02:55]} 7. Nde2 {[%clk 0:02:54]}  Be7 {[%clk 0:02:51]} 8. Bg2 {[%clk 0:02:54]}  Be6 {[%clk 0:02:51]} 9. Nd5 {[%clk 0:02:52]}  Bxd5 {[%clk 0:02:50]} 10. exd5 {[%clk 0:02:53]}  Nb8 {[%clk 0:02:50]} 11. h3 {[%clk 0:02:53]}  O-O {[%clk 0:02:49]} 12. O-O {[%clk 0:02:54]}  a5 {[%clk 0:02:49]} 13. c4 {[%clk 0:02:53]}  Nfd7 {[%clk 0:02:46]} 14. Be3 {[%clk 0:02:53]}  Bg5 {[%clk 0:02:44]} 15. f4 {[%clk 0:02:45]}  exf4 {[%clk 0:02:43]} 16. Nxf4 {[%clk 0:02:46]}  Na6 {[%clk 0:02:39]} 17. b3 {[%clk 0:02:45]}  Re8 {[%clk 0:02:39]} 18. Qd2 {[%clk 0:02:44]}  Bf6 {[%clk 0:02:34]} 19. Rae1 {[%clk 0:02:43]}  g6 {[%clk 0:02:34]} 20. Kh2 {[%clk 0:02:37]}  Nac5 {[%clk 0:02:33]} 21. Bf2 {[%clk 0:02:28]}  Rxe1 {[%clk 0:02:32]} 22. Rxe1 {[%clk 0:02:29]}  Qf8 {[%clk 0:02:32]} 23. Nd3 {[%clk 0:02:28]}  b6 {[%clk 0:02:27]} 24. Nxc5 {[%clk 0:02:00]}  Nxc5 {[%clk 0:02:25]} 25. Qf4 {[%clk 0:01:54]}  Be5 {[%clk 0:02:20]} 26. Rxe5 {[%clk 0:01:37]}  dxe5 {[%clk 0:02:16]} 27. Qxe5 {[%clk 0:01:35]}  Nd3 {[%clk 0:02:14]} 28. Qf6 {[%clk 0:01:34]}  Nxf2 {[%clk 0:02:14]} 29. Qxb6 {[%clk 0:01:18]}  Nd3 {[%clk 0:02:06]} 30. Qd4 {[%clk 0:01:12]}  Nc5 {[%clk 0:02:05]} 31. d6 {[%clk 0:01:12]}  Rc8 {[%clk 0:01:53]} 32. Bd5 {[%clk 0:00:54]}  Qg7 {[%clk 0:01:35]} 33. Qf2 {[%clk 0:00:53]}  Nd7 {[%clk 0:01:29]} 34. a3 {[%clk 0:00:50]}  Qf6 {[%clk 0:01:25]} 35. Qd2 {[%clk 0:00:41]}  Kg7 {[%clk 0:01:21]} 36. b4 {[%clk 0:00:41]}  Qxd6 {[%clk 0:01:18]} 37. c5 {[%clk 0:00:41]}  Qe5 {[%clk 0:01:11]} 38. Bg2 {[%clk 0:00:36]}  Nf6 {[%clk 0:01:06]} 39. c6 {[%clk 0:00:32]}  axb4 {[%clk 0:01:06]} 40. axb4 {[%clk 0:00:33]}  h5 {[%clk 0:01:05]} 41. Qf4 {[%clk 0:00:23]}  Qxf4 {[%clk 0:00:45]} 42. gxf4 {[%clk 0:00:24]}  Ne8 {[%clk 0:00:45]} 43. b5 {[%clk 0:00:24]}  Rb8 {[%clk 0:00:45]} 44. Bf1 {[%clk 0:00:20]}  Nc7 {[%clk 0:00:45]} 0-1


[Site "https://www.chess.com"]

[Event "Titled Tuesday Blitz July 18 Early 2023"]
[White "Pham, Khoi"]
[Black "Galchenko, Matvey"]
[WhiteFideId "1054988"]
[BlackFideId "24175480"]
[WhiteElo "2581"]
[BlackElo "2877"]
[Result "0-1"]
[Round "2"]
[TimeControl "180+2"]
[Date "2023.07.18"]
[WhiteClock "0:00:00"]
[BlackClock "0:00:05"]
[Board "36"]

1. e4 {[%clk 0:03:00]}  e6 {[%clk 0:02:58]} 2. d4 {[%clk 0:02:59]}  d5 {[%clk 0:02:57]} 3. Nd2 {[%clk 0:02:59]}  a6 {[%clk 0:02:57]} 4. Ngf3 {[%clk 0:02:56]}  Nf6 {[%clk 0:02:58]} 5. Bd3 {[%clk 0:02:54]}  c5 {[%clk 0:02:58]} 6. e5 {[%clk 0:02:52]}  Nfd7 {[%clk 0:02:58]} 7. c3 {[%clk 0:02:52]}  Nc6 {[%clk 0:02:58]} 8. O-O {[%clk 0:02:51]}  g5 {[%clk 0:02:58]} 9. Nb3 {[%clk 0:02:37]}  h6 {[%clk 0:02:58]} 10. Nxc5 {[%clk 0:02:35]}  Nxc5 {[%clk 0:02:55]} 11. dxc5 {[%clk 0:02:36]}  Bxc5 {[%clk 0:02:55]} 12. Qe2 {[%clk 0:02:34]}  Qc7 {[%clk 0:02:53]} 13. b4 {[%clk 0:02:34]}  Bf8 {[%clk 0:02:52]} 14. Re1 {[%clk 0:02:30]}  Bd7 {[%clk 0:02:52]} 15. Bd2 {[%clk 0:02:27]}  Bg7 {[%clk 0:02:52]} 16. h3 {[%clk 0:02:27]}  Rd8 {[%clk 0:02:36]} 17. a4 {[%clk 0:02:26]}  Ne7 {[%clk 0:02:34]} 18. b5 {[%clk 0:02:22]}  a5 {[%clk 0:02:33]} 19. Rac1 {[%clk 0:02:20]}  b6 {[%clk 0:02:10]} 20. c4 {[%clk 0:02:19]}  dxc4 {[%clk 0:02:10]} 21. Bxc4 {[%clk 0:02:16]}  Qb8 {[%clk 0:02:11]} 22. Be3 {[%clk 0:02:14]}  Ng6 {[%clk 0:02:05]} 23. Bd4 {[%clk 0:02:09]}  Nf4 {[%clk 0:02:04]} 24. Qe4 {[%clk 0:02:08]}  Bc8 {[%clk 0:02:02]} 25. Qc6+ {[%clk 0:02:06]}  Bd7 {[%clk 0:01:48]} 26. Qxb6 {[%clk 0:02:05]}  Qa8 {[%clk 0:01:49]} 27. Qa6 {[%clk 0:01:56]}  Nxh3+ {[%clk 0:01:33]} 28. Kh2 {[%clk 0:01:51]}  Nf4 {[%clk 0:01:18]} 29. Bb6 {[%clk 0:01:29]}  Qxa6 {[%clk 0:00:56]} 30. bxa6 {[%clk 0:01:28]}  Ra8 {[%clk 0:00:57]} 31. Bb5 {[%clk 0:01:22]}  Bxb5 {[%clk 0:00:48]} 32. axb5 {[%clk 0:01:23]}  Nd3 {[%clk 0:00:49]} 33. Bxa5 {[%clk 0:01:03]}  Nxc1 {[%clk 0:00:48]} 34. Rxc1 {[%clk 0:01:03]}  g4 {[%clk 0:00:48]} 35. b6 {[%clk 0:00:41]}  gxf3 {[%clk 0:00:44]} 36. b7 {[%clk 0:00:41]}  Bxe5+ {[%clk 0:00:40]} 37. g3 {[%clk 0:00:38]}  Rxa6 {[%clk 0:00:21]} 38. Rc8+ {[%clk 0:00:36]}  Kd7 {[%clk 0:00:20]} 39. Rxh8 {[%clk 0:00:23]}  Rxa5 {[%clk 0:00:21]} 40. b8=Q {[%clk 0:00:23]}  Bxb8 {[%clk 0:00:21]} 41. Rxb8 {[%clk 0:00:24]}  Ke7 {[%clk 0:00:20]} 42. Rb3 {[%clk 0:00:23]}  Rf5 {[%clk 0:00:19]} 43. g4 {[%clk 0:00:24]}  Rg5 {[%clk 0:00:19]} 44. Kg3 {[%clk 0:00:25]}  f5 {[%clk 0:00:14]} 45. Kxf3 {[%clk 0:00:22]}  Rxg4 {[%clk 0:00:14]} 46. Rb7+ {[%clk 0:00:22]}  Kf6 {[%clk 0:00:14]} 47. Rb1 {[%clk 0:00:22]}  h5 {[%clk 0:00:14]} 48. Rh1 {[%clk 0:00:22]}  h4 {[%clk 0:00:15]} 49. Rb1 {[%clk 0:00:22]}  Rg7 {[%clk 0:00:13]} 50. Rh1 {[%clk 0:00:22]}  Rh7 {[%clk 0:00:13]} 51. Rh3 {[%clk 0:00:22]}  e5 {[%clk 0:00:13]} 52. Kg2 {[%clk 0:00:22]}  Kg5 {[%clk 0:00:12]} 53. Ra3 {[%clk 0:00:23]}  Kg4 {[%clk 0:00:12]} 54. Ra4+ {[%clk 0:00:23]}  e4 {[%clk 0:00:13]} 55. Ra3 {[%clk 0:00:24]}  h3+ {[%clk 0:00:13]} 56. Kh2 {[%clk 0:00:24]}  Rh8 {[%clk 0:00:10]} 57. Rg3+ {[%clk 0:00:24]}  Kf4 {[%clk 0:00:11]} 58. Re3 {[%clk 0:00:21]}  Rh4 {[%clk 0:00:11]} 59. Rg3 {[%clk 0:00:20]}  Rg4 {[%clk 0:00:10]} 60. Rxh3 {[%clk 0:00:18]}  Rg7 {[%clk 0:00:09]} 61. Re3 {[%clk 0:00:18]}  Ke5 {[%clk 0:00:09]} 62. Rh3 {[%clk 0:00:18]}  f4 {[%clk 0:00:10]} 63. Ra3 {[%clk 0:00:18]}  Rg8 {[%clk 0:00:06]} 64. Ra5+ {[%clk 0:00:17]}  Kd4 {[%clk 0:00:07]} 65. Ra4+ {[%clk 0:00:18]}  Kd3 {[%clk 0:00:07]} 66. Ra3+ {[%clk 0:00:19]}  Ke2 {[%clk 0:00:07]} 67. Ra2+ {[%clk 0:00:19]}  Kf3 {[%clk 0:00:08]} 68. Kh1 {[%clk 0:00:19]}  e3 {[%clk 0:00:06]} 69. fxe3 {[%clk 0:00:19]}  fxe3 {[%clk 0:00:07]} 70. Rg2 {[%clk 0:00:19]}  Ra8 {[%clk 0:00:06]} 71. Kg1 {[%clk 0:00:05]}  e2 {[%clk 0:00:05]} 72. Rf2+ {[%clk 0:00:00]}  Ke3 {[%clk 0:00:05]} 0-1


[Site "https://www.chess.com"]